[Event "DEN-ch KK 2020"]
[Site "Svendborg"]
[Date "2020.10.17"]
[Round "6.6"]
[White "Jaksland, Tim"]
[Black "Kistrup, Nicolai"]
[Result "0-1"]
[ECO "B24"]
[WhiteElo "2247"]
[BlackElo "2128"]
[Annotator "ChessBase"]
[PlyCount "126"]
[EventDate "2020.10.09"]
[EventType "tourn"]
[EventCountry "DEN"]
[SourceTitle "playchess.com"]
[Source "ChessBase"]
[SourceQuality "1"]
[TimeControl "40/5400+30:1800+30"]

1. e4 {[%emt 0:01:42]} c5 {[%emt 0:00:00]} 2. Nc3 {[%emt 0:00:32]} Nc6 {[%emt 0:00:24]} 3. Bb5 {[%emt 0:00:10]} Nd4 {[%emt 0:00:32]} 4. Nf3 {[%emt 0:00:22]} a6 {[%emt 0:00:29]} 5. Bd3 {[%emt 0:00:24]} Nc6 {[%emt 0:00:52]} 6. O-O {[%emt 0:01:44]} e6 {[%emt 0:00:36]} 7. a3 {[%emt 0:02:10]} b5 {[%emt 0:32:21]} 8. b3 {[%emt 0:21:56]} g5 {[%emt 0:11:07]} 9. Bb2 {[%emt 0:02:32]} Bg7 {[%emt 0:01:28]} 10. Rb1 {[%emt 0:09:37]} d6 {[%emt 0:08:24]} 11. Ne2 {[%emt 0:37:17]} Bxb2 {[%emt 0:20:37]} 12. Rxb2 {[%emt 0:00:12]} e5 {[%emt 0:01:14]} 13. Ng3 {[%emt 0:04:31]} h5 {[%emt 0:01:38]} 14. c3 {[%emt 0:03:16]} Qf6 {[%emt 0:04:11]} 15. Ne1 {[%emt 0:01:22]} h4 {[%emt 0:01:46]} 16. Nh1 {[%emt 0:00:14]} Qg6 {[%emt 0:05:54]} 17. a4 {[%emt 0:05:37]} b4 {[%emt 0:02:18]} 18. Qe2 {[%emt 0:00:29]} Nf6 {[%emt 0:00:42]} 19. Nc2 {[%emt 0:01:34]} Nh5 {[%emt 0:01:00]} 20. g3 {[%emt 0:00:39]} Nf4 {[%emt 0:02:49]} 21. Qe3 {[%emt 0:01:11]} hxg3 {[%emt 0:01:01]} 22. fxg3 {[%emt 0:00:41]} Qh5 {[%emt 0:00:13]} 23. Rf2 {[%emt 0:02:32]} Nh3+ {[%emt 0:00:32]} 24. Kf1 {[%emt 0:00:04]} Nxf2 {[%emt 0:00:59]} 25. Nxf2 {[%emt 0:01:05]} Qxh2 {[%emt 0:00:30]} 26. Qxg5 {[%emt 0:00:06]} Be6 {[%emt 0:00:43]} 27. Ne3 {[%emt 0:00:16]} Qh6 {[%emt 0:00:24]} 28. Qxh6 {[%emt 0:00:46]} Rxh6 {[%emt 0:00:05]} 29. Ke2 {[%emt 0:00:45]} Na5 {[%emt 0:00:58]} 30. Nd5 {[%emt 0:00:32]} Bxd5 {[%emt 0:00:18]} 31. exd5 {[%emt 0:00:02]} Ke7 {[%emt 0:00:46]} 32. Rb1 {[%emt 0:00:14]} Rhh8 {[%emt 0:00:29]} 33. Kf3 {[%emt 0:00:29]} Rhb8 {[%emt 0:00:10]} 34. c4 {[%emt 0:00:26]} Rh8 {[%emt 0:00:15]} 35. Bc2 {[%emt 0:01:05]} Raf8 {[%emt 0:00:45]} 36. Bf5 {[%emt 0:00:14]} Rh2 {[%emt 0:00:42]} 37. g4 {[%emt 0:00:31]} Rfh8 {[%emt 0:00:32]} 38. Kg3 {[%emt 0:00:21]} f6 {[%emt 0:00:40]} 39. Bg6 {[%emt 0:00:25]} R2h6 {[%emt 0:00:30]} 40. Bf5 {[%emt 0:00:27]} Rh2 {[%emt 0:00:24]} 41. Bg6 {[%emt 0:30:08]} Nb7 {[%emt 0:11:34]} 42. Bh5 {[%emt 0:00:00]} R8xh5 {[%emt 0:00:51]} 43. gxh5 {[%emt 0:00:00]} Rxh5 {[%emt 0:00:07]} 44. Kg4 {[%emt 0:00:00]} Rg5+ {[%emt 0:02:37]} 45. Kf3 {[%emt 0:00:00]} Na5 {[%emt 0:01:03]} 46. Ne4 {[%emt 0:00:00]} Rf5+ {[%emt 0:02:40]} 47. Ke3 {[%emt 0:00:00]} Rh5 {[%emt 0:01:27]} 48. Ng3 {[%emt 0:00:00]} Rg5 {[%emt 0:02:22]} 49. Ne4 {[%emt 0:00:00]} Rg7 {[%emt 0:01:05]} 50. Kf2 {[%emt 0:00:00]} f5 {[%emt 0:02:00]} 51. Ng3 {[%emt 0:00:00]} Rf7 {[%emt 0:00:41]} 52. Kf3 {[%emt 0:00:00]} Kf6 {[%emt 0:00:40]} 53. d3 {[%emt 0:00:59]} Rh7 {[%emt 0:00:35]} 54. Rb2 {[%emt 0:00:27]} Kg5 {[%emt 0:02:34]} 55. Rb1 {[%emt 0:03:51]} Rh2 {[%emt 0:01:27]} 56. Rg1 {[%emt 0:00:20]} Kf6 {[%emt 0:00:39]} 57. Rb1 {[%emt 0:00:36]} Rd2 {[%emt 0:01:47]} 58. Ke3 {[%emt 0:01:02]} Rc2 {[%emt 0:01:03]} 59. Ne2 {[%emt 0:02:56]} f4+ {[%emt 0:00:45]} 60. Kf3 {[%emt 0:00:05]} Rd2 {[%emt 0:00:31]} 61. Nc1 {[%emt 0:00:34]} Rd1 {[%emt 0:00:21]} 62. Ke2 {[%emt 0:00:12]} Rh1 {[%emt 0:00:16]} 63. Kd2 {[%emt 0:00:06]} Kg5 {[%emt 0:00:38]} 0-1

[Event "DEN-ch KK 2020"]
[Site "Svendborg"]
[Date "2020.10.17"]
[Round "6.8"]
[White "Nordenbaek, Jan"]
[Black "Steffensen, Elena"]
[Result "1/2-1/2"]
[ECO "A40"]
[WhiteElo "2238"]
[BlackElo "2081"]
[Annotator "ChessBase"]
[PlyCount "89"]
[EventDate "2020.10.09"]
[EventType "tourn"]
[EventCountry "DEN"]
[SourceTitle "playchess.com"]
[Source "ChessBase"]
[SourceQuality "1"]
[TimeControl "40/5400+30:1800+30"]

1. d4 {[%emt 0:00:00]} g6 {[%emt 0:00:00]} 2. c4 {[%emt 0:00:39]} c6 {[%emt 0:00:00]} 3. Bf4 {[%emt 0:03:06]} Nf6 {[%emt 0:06:54]} 4. Nc3 {[%emt 0:00:54]} Bg7 {[%emt 0:01:54]} 5. e3 {[%emt 0:03:12]} d6 {[%emt 0:00:53]} 6. h3 {[%emt 0:01:38]} O-O {[%emt 0:04:36]} 7. Nf3 {[%emt 0:01:36]} Nbd7 {[%emt 0:04:01]} 8. Be2 {[%emt 0:00:19]} Re8 {[%emt 0:02:24]} 9. O-O {[%emt 0:03:28]} Qc7 {[%emt 0:12:10]} 10. c5 {[%emt 0:02:09]} Nh5 {[%emt 0:02:21]} 11. cxd6 {[%emt 0:07:12]} exd6 {[%emt 0:00:39]} 12. Bh2 {[%emt 0:00:05]} Nf8 {[%emt 0:07:17]} 13. Rc1 {[%emt 0:01:54]} Qe7 {[%emt 0:01:56]} 14. b4 {[%emt 0:03:17]} d5 {[%emt 0:05:00]} 15. b5 {[%emt 0:00:23]} Be6 {[%emt 0:03:16]} 16. bxc6 {[%emt 0:05:46]} bxc6 {[%emt 0:00:09]} 17. Ne5 {[%emt 0:02:11]} Bxe5 {[%emt 0:01:27]} 18. Bxe5 {[%emt 0:00:08]} Ng7 {[%emt 0:00:46]} 19. Na4 {[%emt 0:02:23]} Nd7 {[%emt 0:03:02]} 20. Bh2 {[%emt 0:09:24]} Nb6 {[%emt 0:05:46]} 21. Nxb6 {[%emt 0:03:01]} axb6 {[%emt 0:01:16]} 22. Rxc6 {[%emt 0:00:04]} Rxa2 {[%emt 0:00:30]} 23. Rxb6 {[%emt 0:00:43]} Nf5 {[%emt 0:03:54]} 24. Bd3 {[%emt 0:08:19]} Qg5 {[%emt 0:06:51]} 25. Bf4 {[%emt 0:02:38]} Qh4 {[%emt 0:01:28]} 26. Qf3 {[%emt 0:03:34]} Ng7 {[%emt 0:05:37]} 27. Rfb1 {[%emt 0:04:21]} Ra3 {[%emt 0:01:38]} 28. Bb5 {[%emt 0:00:38]} Rc8 {[%emt 0:01:05]} 29. Ba6 {[%emt 0:05:05]} Re8 {[%emt 0:00:18]} 30. Bd6 {[%emt 0:01:17]} Ra2 {[%emt 0:01:06]} 31. Bb5 {[%emt 0:02:30]} Rc8 {[%emt 0:00:18]} 32. Bc6 {[%emt 0:01:07]} Nf5 {[%emt 0:00:29]} 33. Be5 {[%emt 0:00:48]} Rc2 {[%emt 0:01:43]} 34. Ba4 {[%emt 0:03:40]} Rc1+ {[%emt 0:00:52]} 35. Kh2 {[%emt 0:01:45]} Nh6 {[%emt 0:00:33]} 36. Bd1 {[%emt 0:07:28]} Ng4+ {[%emt 0:02:57]} 37. Kg1 {[%emt 0:00:11]} Nxe5 {[%emt 0:01:41]} 38. dxe5 {[%emt 0:00:03]} Qc4 {[%emt 0:04:45]} 39. Kh2 {[%emt 0:02:52]} Qc7 {[%emt 0:01:04]} 40. Rxc1 {[%emt 0:04:14]} Qxe5+ {[%emt 0:00:28]} 41. Qg3 {[%emt 0:30:26]} Qxg3+ {[%emt 0:30:20]} 42. Kxg3 {[%emt 0:00:04]} Rxc1 {[%emt 0:00:08]} 43. Bf3 {[%emt 0:00:45]} Rc2 {[%emt 0:02:17]} 44. Rd6 {[%emt 0:00:21]} Rd2 {[%emt 0:00:11]} 45. Bg4 {[%emt 0:00:00]} 1/2-1/2

[Event "DEN-ch KK 2020"]
[Site "Svendborg"]
[Date "2020.10.17"]
[Round "6.10"]
[White "Nilssen, Ellen Fredericia"]
[Black "Easwaralingam, Adesh"]
[Result "0-1"]
[ECO "A15"]
[WhiteElo "2209"]
[BlackElo "2110"]
[Annotator "ChessBase"]
[PlyCount "54"]
[EventDate "2020.10.09"]
[EventType "tourn"]
[EventCountry "DEN"]
[SourceTitle "playchess.com"]
[Source "ChessBase"]
[SourceQuality "1"]
[TimeControl "40/5400+30:1800+30"]

1. c4 {[%emt 0:00:00]} Nf6 {[%emt 0:00:00]} 2. Nf3 {[%emt 0:00:00]} e6 {[%emt 0:00:00]} 3. a3 {[%emt 0:00:00]} d5 {[%emt 0:00:48]} 4. e3 {[%emt 0:00:00]} c5 {[%emt 0:01:25]} 5. d4 {[%emt 0:00:00]} dxc4 {[%emt 0:01:37]} 6. Bxc4 {[%emt 0:00:11]} Nc6 {[%emt 0:01:34]} 7. O-O {[%emt 0:00:12]} cxd4 {[%emt 0:00:14]} 8. exd4 {[%emt 0:00:18]} Be7 {[%emt 0:01:32]} 9. Nc3 {[%emt 0:00:24]} O-O {[%emt 0:00:21]} 10. Re1 {[%emt 0:01:19]} a6 {[%emt 0:03:29]} 11. Bf4 {[%emt 0:08:53]} b5 {[%emt 0:04:56]} 12. Ba2 {[%emt 0:04:58]} Bb7 {[%emt 0:03:26]} 13. Rc1 {[%emt 0:09:26]} Rc8 {[%emt 0:03:50]} 14. d5 {[%emt 0:01:04]} exd5 {[%emt 0:02:24]} 15. Nxd5 {[%emt 0:00:39]} Nxd5 {[%emt 0:01:15]} 16. Bxd5 {[%emt 0:00:16]} Bf6 {[%emt 0:02:03]} 17. Bd6 {[%emt 0:06:32]} Re8 {[%emt 0:05:27]} 18. Bxf7+ {[%emt 0:11:03]} Kxf7 {[%emt 0:00:13]} 19. Qd5+ {[%emt 0:04:04]} Kg6 {[%emt 0:00:05]} 20. Qd3+ {[%emt 0:05:49]} Kf7 {[%emt 0:03:50]} 21. Qd5+ {[%emt 0:00:19]} Kg6 {[%emt 0:00:13]} 22. Rxe8 {[%emt 0:13:27]} Qxe8 {[%emt 0:00:22]} 23. g4 {[%emt 0:07:53]} Ne5 {[%emt 0:22:59]} 24. Nxe5+ {[%emt 0:00:28]} Qxe5 {[%emt 0:00:14]} 25. Qd3+ {[%emt 0:01:50]} Kf7 {[%emt 0:00:11]} 26. Bxe5 {[%emt 0:07:33]} Rxc1+ {[%emt 0:00:09]} 27. Qd1 {[%emt 0:00:03]} Rxd1# {[%emt 0:00:11]} 0-1

[Event "DEN-ch KK 2020"]
[Site "Svendborg"]
[Date "2020.10.17"]
[Round "6.11"]
[White "Hald Falkesgaard, Jeppe"]
[Black "Liu, Casper"]
[Result "0-1"]
[ECO "A43"]
[WhiteElo "1984"]
[BlackElo "2155"]
[Annotator "ChessBase"]
[PlyCount "48"]
[EventDate "2020.10.09"]
[EventType "tourn"]
[EventCountry "DEN"]
[SourceTitle "playchess.com"]
[Source "ChessBase"]
[SourceQuality "1"]
[TimeControl "40/5400+30:1800+30"]

1. d4 {[%emt 0:00:00]} c5 {[%emt 0:00:15]} 2. d5 {[%emt 0:00:00]} f5 {[%emt 0:00:04]} 3. c4 {[%emt 0:00:41]} d6 {[%emt 0:00:18]} 4. g3 {[%emt 0:00:17]} g6 {[%emt 0:00:03]} 5. Bg2 {[%emt 0:00:05]} Bg7 {[%emt 0:00:04]} 6. Nf3 {[%emt 0:00:18]} Nf6 {[%emt 0:01:41]} 7. O-O {[%emt 0:00:16]} O-O {[%emt 0:00:05]} 8. Nc3 {[%emt 0:00:25]} Na6 {[%emt 0:00:10]} 9. Re1 {[%emt 0:02:12]} Nc7 {[%emt 0:01:24]} 10. e4 {[%emt 0:06:24]} fxe4 {[%emt 0:00:38]} 11. Ng5 {[%emt 0:00:29]} Rb8 {[%emt 0:04:52]} 12. Ncxe4 {[%emt 0:25:46]} Nxe4 {[%emt 0:03:06]} 13. Bxe4 {[%emt 0:00:26]} Bf5 {[%emt 0:12:01]} 14. a4 {[%emt 0:02:59]} a6 {[%emt 0:09:46]} 15. Qe2 {[%emt 0:10:03]} Qc8 {[%emt 0:05:40]} 16. Qc2 {[%emt 0:11:19]} b5 {[%emt 0:10:24]} 17. axb5 {[%emt 0:03:39]} axb5 {[%emt 0:00:39]} 18. Bxf5 {[%emt 0:06:55]} Rxf5 {[%emt 0:00:15]} 19. Ra7 {[%emt 0:06:42]} Bd4 {[%emt 0:05:03]} 20. Kh1 {[%emt 0:04:07]} Rb7 {[%emt 0:06:48]} 21. Rxb7 {[%emt 0:06:35]} Qxb7 {[%emt 0:00:03]} 22. b3 {[%emt 0:04:34]} bxc4 {[%emt 0:15:11]} 23. bxc4 {[%emt 0:00:13]} e6 {[%emt 0:18:12]} 24. Qe4 {[%emt 0:03:45]} Re5 {[%emt 0:00:28]} 0-1

[Event "DEN-ch KK 2020"]
[Site "Svendborg"]
[Date "2020.10.17"]
[Round "6.12"]
[White "Guindy, Esmat Susanne"]
[Black "Holm, Filip"]
[Result "1/2-1/2"]
[ECO "E65"]
[WhiteElo "2131"]
[BlackElo "2210"]
[Annotator "ChessBase"]
[PlyCount "62"]
[EventDate "2020.10.09"]
[EventType "tourn"]
[EventCountry "DEN"]
[SourceTitle "playchess.com"]
[Source "ChessBase"]
[SourceQuality "1"]
[TimeControl "40/5400+30:1800+30"]

1. c4 {[%emt 0:00:00]} d6 {[%emt 0:00:15]} 2. Nc3 {[%emt 0:00:19]} Nf6 {[%emt 0:00:37]} 3. g3 {[%emt 0:00:10]} g6 {[%emt 0:00:08]} 4. Bg2 {[%emt 0:00:11]} Bg7 {[%emt 0:00:08]} 5. d4 {[%emt 0:00:43]} O-O {[%emt 0:00:40]} 6. Nf3 {[%emt 0:00:08]} c5 {[%emt 0:01:38]} 7. O-O {[%emt 0:01:49]} Nc6 {[%emt 0:02:20]} 8. b3 {[%emt 0:12:22]} Bg4 {[%emt 0:02:20]} 9. Be3 {[%emt 0:08:08]} Qa5 {[%emt 0:06:09]} 10. Rc1 {[%emt 0:06:43]} Rfd8 {[%emt 0:04:37]} 11. d5 {[%emt 0:04:10]} Nb4 {[%emt 0:06:18]} 12. Qd2 {[%emt 0:08:23]} Nd7 {[%emt 0:05:31]} 13. a4 {[%emt 0:06:24]} Bf5 {[%emt 0:07:44]} 14. Na2 {[%emt 0:07:17]} b6 {[%emt 0:09:58]} 15. Nxb4 {[%emt 0:01:57]} Qxb4 {[%emt 0:00:11]} 16. Qxb4 {[%emt 0:02:46]} cxb4 {[%emt 0:00:09]} 17. Nd4 {[%emt 0:04:52]} Bxd4 {[%emt 0:00:15]} 18. Bxd4 {[%emt 0:00:53]} Nc5 {[%emt 0:00:10]} 19. Bxc5 {[%emt 0:01:52]} bxc5 {[%emt 0:00:14]} 20. Rfe1 {[%emt 0:02:03]} Bd7 {[%emt 0:03:06]} 21. e4 {[%emt 0:00:38]} f6 {[%emt 0:04:29]} 22. f4 {[%emt 0:00:32]} Re8 {[%emt 0:03:38]} 23. e5 {[%emt 0:00:34]} Bf5 {[%emt 0:00:12]} 24. e6 {[%emt 0:03:53]} g5 {[%emt 0:01:24]} 25. Bf3 {[%emt 0:07:21]} gxf4 {[%emt 0:06:39]} 26. Bh5 {[%emt 0:01:59]} Bg6 {[%emt 0:00:13]} 27. Bxg6 {[%emt 0:00:04]} hxg6 {[%emt 0:00:04]} 28. gxf4 {[%emt 0:00:19]} Kg7 {[%emt 0:04:38]} 29. Re3 {[%emt 0:01:16]} Rh8 {[%emt 0:00:21]} 30. h3 {[%emt 0:00:37]} Rh4 {[%emt 0:00:52]} 31. Rf1 {[%emt 0:00:12]} Rah8 {[%emt 0:02:17]} 1/2-1/2

[Event "DEN-ch KK 2020"]
[Site "Svendborg"]
[Date "2020.10.18"]
[Round "7.7"]
[White "Laursen, Niels Norskov"]
[Black "Thuesen, Mogens"]
[Result "0-1"]
[ECO "C11"]
[WhiteElo "2247"]
[BlackElo "2210"]
[Annotator "RC"]
[PlyCount "46"]
[EventDate "2020.10.09"]
[EventType "tourn"]
[EventCountry "DEN"]
[SourceTitle "playchess.com"]
[Source "ChessBase"]
[SourceQuality "1"]
[TimeControl "40/5400+30:1800+30"]

1. e4 {[%emt 0:00:00]} e6 {[%emt 0:00:40]} 2. d4 {[%emt 0:00:00]} d5 {[%emt 0:00:04]} 3. Nc3 {[%emt 0:00:00]} Nf6 {[%emt 0:00:56]} 4. e5 {[%emt 0:00:00]} Nfd7 {[%emt 0:00:05]} 5. f4 {[%emt 0:00:00]} c5 {[%emt 0:00:05]} 6. Nf3 {[%emt 0:00:07]} Nc6 {[%emt 0:00:06]} 7. Be3 {[%emt 0:00:21]} h6 {[%emt 0:00:24]} 8. dxc5 {[%emt 0:21:35]} Bxc5 {[%emt 0:08:25]} 9. Qd2 {[%emt 0:09:48]} Qb6 {[%emt 0:06:33]} 10. Bxc5 {[%emt 0:00:54]} Nxc5 {[%emt 0:01:15]} 11. O-O-O {[%emt 0:03:19]} Bd7 {[%emt 0:04:29]} 12. Bd3 {[%emt 0:04:59]} O-O-O {[%emt 0:07:35]} 13. h4 {[%emt 0:13:57]} Nb4 {[%emt 0:08:17]} 14. Kb1 {[%emt 0:04:09]} Bc6 {[%emt 0:06:15]} 15. Rhe1 {[%emt 0:13:25]} d4 {[%emt 0:10:40]} 16. Ne4 {[%emt 0:00:44]} Na4 {[%emt 0:00:25]} 17. Nd6+ {[%emt 0:08:53]} Rxd6 {[%emt 0:01:10]} 18. exd6 {[%emt 0:00:04]} Nxa2 {[%emt 0:18:14]} 19. b3 {[%emt 0:01:32]} N2c3+ {[%emt 0:01:44]} 20. Kc1 {[%emt 0:02:57]} Qb4 {[%emt 0:01:13]} 21. d7+ {[%emt 0:01:49]} Kb8 {[%emt 0:03:08]} 22. Qf2 {[%emt 0:00:43]} Bxf3 {[%emt 0:02:17]} 23. bxa4 {[%emt 0:05:47]} Na2# 0-1